bitfinex/quotes_BTCUSD_20240613
["timestamp","ask_amount","ask_price","bid_price","bid_amount"]
[1718263089905,1.08106885,67570.0,67569.0,0.005946]
[1718263090112,1.08206885,67570.0,67569.0,0.010946]
[1718263090332,0.99962124,67570.0,67569.0,0.010946]
[1718263090532,0.99311005,67570.0,67569.0,0.010946]
[1718263090729,0.99211005,67570.0,67569.0,0.005946]
[1718263091217,0.99311005,67570.0,67569.0,0.010946]
[1718263092795,0.77489343,67570.0,67569.0,0.010946]
[1718263093653,0.52789343,67570.0,67569.0,0.010946]
[1718263093826,0.52789343,67570.0,67569.0,0.15526593]
[1718263094145,0.10062378,67570.0,67569.0,0.37526593]
[1718263094507,0.10062378,67570.0,67569.0,0.51106593]
[1718263095145,0.09962378,67570.0,67569.0,0.50606593]
[1718263095578,0.10062378,67570.0,67569.0,0.51106593]
[1718263095796,0.08217289,67570.0,67569.0,0.50106593]
[1718263096215,0.08317289,67570.0,67569.0,0.51406593]
[1718263096622,0.08217289,67570.0,67569.0,0.50106593]
[1718263097070,0.08317289,67570.0,67569.0,0.51406593]
[1718263097292,0.08417289,67570.0,67569.0,0.52806593]
[1718263097550,0.08317289,67570.0,67569.0,0.51406593]
[1718263097765,0.08217289,67570.0,67569.0,0.51406593]
[1718263097958,0.08217289,67570.0,67569.0,0.52806593]
[1718263100702,0.10251275,67570.0,67569.0,0.52806593]
[1718263104572,0.03101275,67570.0,67569.0,0.39226593]
[1718263104777,0.10251275,67570.0,67569.0,0.39226593]
[1718263104946,0.14687841,67570.0,67569.0,0.39226593]
[1718263108573,0.14687394,67570.0,67569.0,0.39226593]
[1718263110041,0.12653408,67570.0,67569.0,0.39226593]
[1718263110866,0.08217289,67570.0,67569.0,0.39226593]
[1718263111227,0.12653408,67570.0,67569.0,0.39226593]
[1718263111450,0.08217289,67570.0,67569.0,0.39226593]
[1718263111986,0.12653408,67570.0,67569.0,0.39226593]
[1718263113234,0.05503408,67570.0,67569.0,0.39226593]
[1718263113447,0.08217289,67570.0,67569.0,0.39226593]
[1718263114794,0.10016425,67570.0,67569.0,0.41526593]
[1718263115036,0.10016425,67570.0,67569.0,0.51526593]
[1718263115266,0.10016425,67570.0,67569.0,0.41526593]
[1718263118070,0.10016425,67570.0,67569.0,0.51526593]
[1718263118915,0.10016425,67570.0,67569.0,0.41526593]
[1718263119955,0.02866425,67570.0,67569.0,0.41526593]
[1718263120173,0.10016425,67570.0,67569.0,0.41526593]
[1718263120583,0.10016425,67570.0,67569.0,0.80712589]
[1718263120584,0.01067289,67570.0,67569.0,0.80712589]
[1718263121044,0.001,67570.0,67569.0,0.86874007]
[1718263121245,0.001,67570.0,67569.0,0.91874007]
[1718263121642,0.001,67570.0,67569.0,0.90474007]
[1718263121846,0.0715,67577.0,67576.0,0.05]
[1718263122045,0.0715,67577.0,67576.0,0.69061993]
[1718263122478,0.00086,67582.0,67577.0,0.1]
[1718263122705,0.00086,67582.0,67578.0,0.14431993]
[1718263122906,0.00086,67582.0,67580.0,0.1823]
[1718263123107,0.00086,67582.0,67581.0,0.14431993]
[1718263123468,0.07236,67582.0,67581.0,0.14431993]
[1718263125413,0.07336,67582.0,67581.0,0.15831993]
[1718263126273,0.07336,67582.0,67581.0,0.16731993]
[1718263126884,0.09325518,67582.0,67581.0,0.16731993]
[1718263133601,0.02175518,67582.0,67581.0,0.16731993]
[1718263133786,0.09325518,67582.0,67581.0,0.16731993]
[1718263134191,0.1025382,67582.0,67581.0,0.16731993]
[1718263136645,0.0310382,67582.0,67581.0,0.16731993]
[1718263136855,0.1025382,67582.0,67581.0,0.16731993]
[1718263138216,0.08264302,67582.0,67581.0,0.16731993]
[1718263138643,0.38284303,67582.0,67581.0,0.023]
[1718263138815,0.45434303,67582.0,67581.0,0.023]
[1718263139039,0.76125511,67582.0,67581.0,0.023]
[1718263139243,1.05123021,67582.0,67581.0,0.023]
[1718263139451,0.48294021,67582.0,67581.0,0.023]
[1718263140059,0.58294021,67582.0,67581.0,0.023]
[1718263140480,0.93303177,67582.0,67581.0,0.023]
[1718263140897,0.84431754,67582.0,67581.0,0.023]
[1718263141112,0.51650015,67582.0,67581.0,0.023]
[1718263141547,1.08873428,67582.0,67581.0,0.023]
[1718263142740,1.01723428,67582.0,67581.0,0.023]
[1718263142946,1.08873428,67582.0,67581.0,0.023]
[1718263143152,1.15106925,67582.0,67581.0,0.023]
[1718263144788,0.67220015,67582.0,67581.0,0.023]
[1718263145008,1.15095675,67582.0,67581.0,0.023]
[1718263145225,1.15096418,67582.0,67581.0,0.023]
[1718263145655,1.20563425,67582.0,67581.0,0.023]
[1718263145858,1.27713425,67582.0,67581.0,0.023]
[1718263146065,1.21478301,67582.0,67581.0,0.023]
[1718263146315,1.27706435,67582.0,67581.0,0.023]
[1718263146893,1.21478301,67582.0,67581.0,0.023]
[1718263147315,1.27732725,67582.0,67581.0,0.023]
[1718263147509,1.1261938,67582.0,67581.0,0.023]
[1718263147717,1.12619185,67582.0,67581.0,0.023]
[1718263147929,1.14960257,67582.0,67581.0,0.023]
[1718263149314,1.14959101,67582.0,67581.0,0.023]
[1718263149535,1.02342094,67582.0,67581.0,0.023]
[1718263149971,1.00596381,67582.0,67581.0,0.023]
[1718263150176,0.93446381,67582.0,67581.0,0.023]
[1718263150377,1.00596381,67582.0,67581.0,0.023]
[1718263150586,0.67815074,67582.0,67581.0,0.023]
[1718263150758,0.72118626,67582.0,67581.0,0.023]
[1718263151136,0.65474302,67582.0,67581.0,0.023]
[1718263152461,0.49166302,67582.0,67581.0,0.023]
[1718263152641,0.49694373,67582.0,67581.0,0.023]
[1718263153251,0.65264373,67582.0,67581.0,0.023]
[1718263153452,0.67243381,67582.0,67581.0,0.023]
[1718263153707,1.02371633,67582.0,67581.0,0.023]
[1718263154822,0.86801633,67582.0,67581.0,0.023946]
[1718263155044,0.55161633,67582.0,67581.0,0.023946]
[1718263155265,0.20119381,67582.0,67581.0,0.023946]
[1718263155509,0.24549877,67582.0,67581.0,0.023946]
[1718263156635,0.20119381,67582.0,67581.0,0.48816593]
[1718263156780,0.02969381,67582.0,67581.0,0.58816593]
[1718263156981,0.10119381,67582.0,67581.0,0.48816593]
[1718263157620,0.09215008,67582.0,67581.0,0.48816593]
[1718263157830,0.10119134,67582.0,67581.0,0.48816593]
[1718263157981,0.09215008,67582.0,67581.0,0.48816593]
[1718263158181,0.10119134,67582.0,67581.0,0.48816593]
[1718263160020,0.10119134,67582.0,67581.0,0.16826593]
[1718263161225,0.10119134,67582.0,67581.0,0.48186593]
[1718263161434,0.10119134,67582.0,67581.0,0.16826593]
[1718263162457,0.02969134,67582.0,67581.0,0.47666593]
[1718263162667,0.10119134,67582.0,67581.0,0.33966593]
[1718263163031,0.08140126,67582.0,67581.0,0.33966593]
[1718263163228,0.08140126,67582.0,67581.0,0.16826593]
[1718263166792,0.09919192,67582.0,67581.0,0.16826593]
[1718263167580,0.02769192,67582.0,67581.0,0.39626593]
[1718263167781,0.09919192,67582.0,67581.0,0.65256593]
[1718263167988,0.09015066,67582.0,67581.0,0.65256593]
[1718263168279,0.02770187,67582.0,67581.0,0.65256593]
[1718263168504,0.09015066,67582.0,67581.0,0.65256593]
[1718263168877,0.09920187,67582.0,67581.0,0.65256593]
[1718263170552,0.02770187,67582.0,67581.0,0.65256593]
[1718263170753,0.09015066,67582.0,67581.0,0.65256593]
[1718263171160,0.09920187,67582.0,67581.0,0.65256593]
[1718263174004,0.09920187,67582.0,67581.0,0.55256593]
[1718263174875,0.07236,67582.0,67581.0,0.55256593]
[1718263175095,0.08141302,67582.0,67581.0,0.55256593]
[1718263175685,0.08141302,67582.0,67581.0,0.65256593]
[1718263175900,0.10173153,67582.0,67581.0,0.55256593]
[1718263176106,0.10173153,67582.0,67581.0,0.65256593]
[1718263176550,0.09267851,67582.0,67581.0,0.65256593]
[1718263179753,0.09267851,67582.0,67581.0,0.55256593]
[1718263181011,0.09267851,67582.0,67581.0,0.41926593]
[1718263181606,0.41607851,67582.0,67581.0,0.023946]
[1718263182090,0.42513153,67582.0,67581.0,0.023946]
[1718263182308,0.46944356,67582.0,67581.0,0.023946]
[1718263182759,0.46943065,67582.0,67581.0,0.023946]
[1718263183221,0.42513153,67582.0,67581.0,0.023946]
[1718263183871,0.46943065,67582.0,67581.0,0.023946]
[1718263184967,0.42513153,67582.0,67581.0,0.023946]
[1718263185185,0.46943029,67582.0,67581.0,0.023946]
[1718263185631,0.42513153,67582.0,67581.0,0.023946]
[1718263187831,0.35363153,67582.0,67581.0,0.023946]
[1718263188043,0.42513153,67582.0,67581.0,0.023946]
[1718263189702,0.40481302,67582.0,67581.0,0.023946]
[1718263192023,0.422645,67582.0,67581.0,0.023946]
[1718263193328,0.48910993,67582.0,67581.0,0.023946]
[1718263196947,0.422645,67582.0,67581.0,0.023946]
[1718263197729,0.30844898,67582.0,67577.0,0.01125099]
[1718263197909,0.0715,67578.0,67577.0,0.15557092]
[1718263198341,0.08053625,67578.0,67577.0,0.15557092]
[1718263199635,0.08153625,67578.0,67577.0,0.16957092]
[1718263200258,0.08153625,67578.0,67577.0,0.18257092]
[1718263200867,0.08153625,67578.0,67577.0,0.16957092]
[1718263201097,0.08153625,67578.0,67577.0,0.18257092]
[1718263201270,0.08253625,67578.0,67577.0,0.18257092]
[1718263204187,0.40365675,67578.0,67577.0,0.027]
[1718263204404,0.53351203,67578.0,67577.0,0.027]
[1718263204624,1.18685485,67578.0,67577.0,0.027]
[1718263205140,1.29667066,67578.0,67577.0,0.014]
[1718263205378,0.7951334,67578.0,67577.0,0.014]
[1718263205604,0.7951334,67578.0,67569.0,0.000946]
[1718263205605,0.1341,67577.0,67569.0,0.000946]
[1718263205844,0.0715,67570.0,67569.0,0.14526593]
[1718263206547,0.08053755,67570.0,67569.0,0.14526593]
[1718263207855,0.08053755,67570.0,67569.0,0.15026593]
[1718263208296,0.08153755,67570.0,67569.0,0.14926593]
[1718263208509,0.08053755,67570.0,67569.0,0.15026593]
[1718263208890,0.08053755,67570.0,67569.0,0.15426593]
[1718263208891,0.08153755,67570.0,67569.0,0.15426593]
[1718263209801,0.01003755,67570.0,67569.0,0.15426593]
[1718263210005,0.08153755,67570.0,67569.0,0.15426593]
[1718263210596,0.0725,67570.0,67569.0,0.15426593]
[1718263211384,0.0725,67570.0,67569.0,0.14926593]
[1718263211585,0.08153755,67570.0,67569.0,0.15426593]
[1718263211783,0.0715,67570.0,67569.0,0.15026593]
[1718263212180,0.0725,67570.0,67569.0,0.15526593]
[1718263212604,0.08153231,67570.0,67569.0,0.15526593]
[1718263212805,0.08035108,67570.0,67569.0,0.15526593]
[1718263213010,0.07131877,67570.0,67569.0,0.15526593]
[1718263213397,0.07031877,67570.0,67569.0,0.15026593]
[1718263214268,0.07031877,67570.0,67569.0,0.31116593]
[1718263214727,0.07031877,67570.0,67569.0,0.30616593]
[1718263214942,0.07131877,67570.0,67569.0,0.31116593]
[1718263215355,0.07031877,67570.0,67569.0,0.31116593]
[1718263215582,0.07131877,67570.0,67569.0,0.31116593]
[1718263216012,0.07131877,67570.0,67569.0,0.31616593]
[1718263216228,0.001,67570.0,67569.0,0.31616593]
[1718263216459,0.0725,67570.0,67569.0,0.31616593]
[1718263218615,0.08153231,67570.0,67569.0,0.31616593]
[1718263219241,0.0725,67570.0,67569.0,0.31616593]
[1718263219440,0.08153231,67570.0,67569.0,0.31616593]
[1718263220695,0.09916502,67570.0,67569.0,0.31616593]
[1718263221520,0.09013271,67570.0,67569.0,0.31616593]
[1718263221725,0.09916502,67570.0,67569.0,0.31616593]
[1718263229730,0.08153231,67570.0,67569.0,0.31616593]
[1718263231421,0.08383369,67570.0,67569.0,0.31616593]
[1718263232602,0.08383369,67570.0,67569.0,0.33916593]
[1718263234478,0.0725,67570.0,67569.0,0.33916593]
[1718263234690,0.0838321,67570.0,67569.0,0.33916593]
[1718263240317,0.0838321,67570.0,67569.0,0.010946]
[1718263240536,0.0838321,67570.0,67569.0,0.00310741]
[1718263240537,0.86625572,67570.0,67569.0,0.00310741]
[1718263240749,0.86625572,67570.0,67555.0,0.025]
[1718263240750,0.1604,67567.0,67555.0,0.025]
[1718263240964,0.52103487,67570.0,67556.0,0.14431993]
[1718263240965,0.04435586,67558.0,67556.0,0.14431993]
[1718263241162,0.0715,67557.0,67556.0,0.14431993]
[1718263241375,0.08236224,67557.0,67556.0,0.14431993]
[1718263241818,0.08236224,67557.0,67555.0,0.025]
[1718263242306,0.1173,67556.0,67555.0,0.025]
[1718263243022,0.1725181,67556.0,67555.0,0.025]
[1718263243232,0.12816224,67556.0,67555.0,0.025]
[1718263243454,0.1725181,67556.0,67555.0,0.025]
[1718263243665,0.15398095,67556.0,67555.0,0.025]
[1718263243879,0.15498095,67556.0,67555.0,0.025]
[1718263244101,0.15498095,67556.0,67555.0,0.02402706]
[1718263244331,0.11062509,67556.0,67555.0,0.02402706]
[1718263244532,0.11162509,67556.0,67555.0,0.03402706]
[1718263247778,0.01286224,67556.0,67555.0,0.03402706]
[1718263248850,0.01186224,67556.0,67555.0,0.02402706]
[1718263249292,0.01086224,67556.0,67555.0,0.02802706]
[1718263249520,0.01186224,67556.0,67555.0,0.02802706]
[1718263249938,0.01086224,67556.0,67555.0,0.02802706]
[1718263250364,0.01186224,67556.0,67555.0,0.02802706]
[1718263250590,0.01086224,67556.0,67555.0,0.02802706]
[1718263250836,0.01086224,67556.0,67555.0,0.02402706]
[1718263251052,0.01186224,67556.0,67555.0,0.02402706]
[1718263251257,0.01186224,67556.0,67555.0,0.02502706]
[1718263251475,0.16966224,67556.0,67555.0,0.02502706]
[1718263251694,0.16966224,67556.0,67555.0,0.02402706]
[1718263252176,0.16966224,67556.0,67555.0,0.02502706]
[1718263252383,0.16866224,67556.0,67555.0,0.02502706]
[1718263252592,0.16866224,67556.0,67555.0,0.02402706]
[1718263252802,0.16966224,67556.0,67555.0,0.02402706]
[1718263253011,0.16966224,67556.0,67555.0,0.02502706]
[1718263253462,0.17066224,67556.0,67555.0,0.02502706]
[1718263253667,0.29456224,67556.0,67555.0,0.02502706]
[1718263253874,0.33559874,67556.0,67555.0,0.02502706]
[1718263254082,0.43559874,67556.0,67555.0,0.02502706]
[1718263254757,0.43559874,67556.0,67555.0,0.02402706]
[1718263254958,0.43559874,67556.0,67555.0,0.02502706]
[1718263255623,0.43359874,67556.0,67555.0,0.02402706]
[1718263255850,0.44259874,67556.0,67555.0,0.02502706]
[1718263256260,0.44159874,67556.0,67555.0,0.02502706]
[1718263256662,0.44359874,67556.0,67555.0,0.02502706]
[1718263257353,0.46350008,67556.0,67555.0,0.02502706]
[1718263262140,0.1277,67555.0,67553.0,0.000946]
[1718263262348,0.1715,67554.0,67553.0,0.000946]
[1718263262572,0.18230121,67554.0,67553.0,0.000946]
[1718263264037,0.18230121,67554.0,67553.0,0.001946]
[1718263264322,0.11080121,67554.0,67553.0,0.001946]
[1718263264539,0.11080121,67554.0,67553.0,0.151646]
[1718263264772,0.0143969,67554.0,67553.0,0.150646]
[1718263264993,0.0858969,67554.0,67553.0,0.151646]
[1718263265211,0.0775,67554.0,67553.0,0.151646]
[1718263265416,0.091901,67554.0,67553.0,0.151646]
[1718263267808,0.020401,67554.0,67553.0,0.29596593]
[1718263268035,0.020401,67554.0,67553.0,0.66971692]
[1718263268247,0.006,67554.0,67553.0,0.66971692]
[1718263268511,0.006,67554.0,67553.0,0.78909569]
[1718263268743,0.0715,67564.0,67563.0,0.46835099]
[1718263268949,0.43295979,67573.0,67570.0,0.01125099]
[1718263269165,0.00086,67577.0,67571.0,0.1839]
[1718263269393,0.085901,67572.0,67571.0,0.1839]
[1718263269611,0.0715,67572.0,67571.0,0.1839]
[1718263269850,0.085901,67572.0,67565.0,0.1622]
[1718263270053,0.0715,67567.0,67566.0,0.023]
[1718263270657,0.08593371,67567.0,67566.0,0.023]
[1718263271089,0.0715,67567.0,67566.0,0.023]
[1718263271914,0.0725,67567.0,67566.0,0.029]
[1718263272605,0.0735,67567.0,67566.0,0.03]
[1718263272883,0.0725,67567.0,67566.0,0.023]
[1718263273418,0.002,67567.0,67566.0,0.62411993]
[1718263273620,0.0735,67567.0,67566.0,0.60411993]
[1718263274073,0.0725,67567.0,67566.0,0.60411993]
[1718263274316,0.0725,67567.0,67566.0,0.61411993]
[1718263274548,0.0735,67567.0,67566.0,0.61511993]
[1718263275945,0.0725,67567.0,67566.0,0.61411993]
[1718263276148,0.001,67567.0,67566.0,0.61511993]
[1718263276326,0.0735,67567.0,67566.0,0.61511993]
[1718263277020,0.0735,67567.0,67566.0,0.63511993]
[1718263277245,0.002,67567.0,67566.0,0.68511993]
[1718263277649,0.001,67567.0,67566.0,0.80347032]
[1718263278078,0.00086,67577.0,67576.0,0.38355099]
[1718263278287,0.07236,67577.0,67576.0,0.55087092]
[1718263278523,0.07236,67577.0,67576.0,0.57087092]
[1718263279142,0.07236,67577.0,67576.0,0.45087092]
[1718263279361,0.07236,67577.0,67576.0,0.60087092]
[1718263280437,0.07236,67577.0,67576.0,0.50087092]
[1718263280755,0.07236,67577.0,67576.0,0.51187092]
[1718263281385,0.07236,67577.0,67576.0,0.51687092]
[1718263282456,0.07236,67577.0,67576.0,0.61687092]
[1718263282664,0.07236,67577.0,67576.0,0.51687092]
[1718263282869,0.07236,67577.0,67576.0,0.61687092]
[1718263283080,0.07236,67577.0,67576.0,0.51687092]
[1718263283499,0.07236,67577.0,67576.0,0.39787092]
[1718263287750,0.07236,67577.0,67576.0,0.49787092]
[1718263287903,0.07236,67577.0,67576.0,0.39787092]
[1718263288307,0.07236,67577.0,67576.0,0.49787092]
[1718263290380,0.07236,67577.0,67576.0,0.51787092]
[1718263290650,0.00086,67577.0,67576.0,0.64747092]
[1718263290850,0.00086,67577.0,67576.0,0.69747092]
[1718263292506,0.00086,67577.0,67576.0,0.69247092]
[1718263292731,0.00086,67577.0,67576.0,0.70247092]
[1718263293366,0.00086,67577.0,67576.0,0.69147092]
[1718263293811,0.00186,67577.0,67576.0,0.68547092]
[1718263294013,0.00186,67577.0,67576.0,0.58547092]
[1718263294844,0.00186,67577.0,67576.0,0.53547092]
[1718263295084,0.00186,67577.0,67576.0,0.27957092]
[1718263295493,0.00186,67577.0,67576.0,0.37957092]
[1718263295698,0.00186,67577.0,67576.0,0.27957092]
[1718263295908,0.00186,67577.0,67576.0,0.37957092]
[1718263296110,0.00186,67577.0,67576.0,0.27957092]
[1718263296323,0.00186,67577.0,67576.0,0.30257092]
[1718263297932,0.00186,67577.0,67576.0,0.40257092]
[1718263298139,0.00186,67577.0,67576.0,0.42257092]
[1718263298351,0.07336,67577.0,67576.0,0.69017092]
[1718263299057,0.07336,67577.0,67576.0,0.81137514]
[1718263300091,0.07316,67577.0,67576.0,0.81137514]
[1718263301812,0.00166,67577.0,67576.0,0.81137514]
[1718263302026,0.00166,67577.0,67576.0,0.82137514]
[1718263303212,0.00166,67577.0,67576.0,0.98246214]
[1718263303428,0.00066,67577.0,67576.0,1.0446221]
[1718263303632,0.00066,67577.0,67576.0,1.1586221]
[1718263303842,0.00855,67598.0,67597.0,0.22]
[1718263304067,0.00855,67598.0,67597.0,0.38731993]
[1718263304540,0.00855,67598.0,67597.0,0.5100178]
[1718263306713,0.00855,67598.0,67597.0,0.5240178]
[1718263307519,0.00855,67598.0,67597.0,0.38731993]
[1718263307721,0.00855,67598.0,67597.0,0.40131993]
[1718263307935,0.00855,67598.0,67597.0,0.41531993]
[1718263308142,0.00855,67598.0,67597.0,0.38731993]
[1718263308623,0.00855,67598.0,67597.0,0.41531993]
[1718263309019,0.00855,67598.0,67597.0,0.22231993]
[1718263309218,0.00855,67598.0,67597.0,0.27231993]
[1718263309621,0.00855,67598.0,67597.0,0.25831993]
[1718263309898,0.00855,67598.0,67597.0,0.24431993]
[1718263310090,0.00855,67598.0,67597.0,0.25831993]
[1718263310527,0.00855,67598.0,67597.0,0.28131993]
[1718263310766,0.00855,67598.0,67597.0,0.26731993]
[1718263310972,0.00855,67598.0,67597.0,0.28131993]
[1718263311202,0.00855,67598.0,67597.0,0.29531993]
[1718263311592,0.00855,67598.0,67597.0,0.28131993]
[1718263312130,0.00855,67598.0,67597.0,0.29531993]
[1718263314423,0.00855,67598.0,67597.0,0.39531993]
[1718263316100,0.00855,67598.0,67597.0,0.41531993]
[1718263317964,0.00855,67598.0,67597.0,0.39531993]
[1718263318221,0.00855,67598.0,67597.0,0.29531993]
[1718263318422,0.00855,67598.0,67597.0,0.41531993]
[1718263318562,0.00855,67598.0,67597.0,0.39531993]
[1718263321737,0.00855,67598.0,67597.0,0.29531993]
[1718263322639,0.00855,67598.0,67597.0,0.39531993]
[1718263323295,0.00855,67598.0,67597.0,0.41531993]
[1718263323451,0.00855,67598.0,67597.0,0.69941993]
[1718263329903,0.00855,67598.0,67597.0,0.78081993]
[1718263330320,0.00855,67598.0,67597.0,0.77081993]
[1718263330540,0.00855,67598.0,67597.0,0.78081993]
[1718263331835,0.00855,67598.0,67597.0,0.77081993]
[1718263332488,0.00855,67598.0,67597.0,0.78081993]
[1718263334647,0.00855,67598.0,67597.0,1.38437393]
[1718263334850,0.00855,67598.0,67597.0,1.48437393]
[1718263335069,0.00855,67598.0,67597.0,1.64007393]
[1718263335257,0.00855,67598.0,67597.0,1.79007393]
[1718263335632,0.00855,67598.0,67597.0,1.84007393]
[1718263335888,0.00855,67598.0,67597.0,1.88566021]
[1718263336122,0.00855,67598.0,67597.0,1.81207393]
[1718263336630,0.00855,67598.0,67597.0,1.82607393]
[1718263336880,0.00855,67598.0,67597.0,1.84007393]
[1718263337838,0.00855,67600.0,67599.0,0.689251]
[1718263338120,0.00855,67600.0,67599.0,1.30624032]
[1718263338680,0.00856,67601.0,67600.0,0.71885]
[1718263338910,0.00856,67601.0,67600.0,1.31133932]
[1718263339161,0.0134874,67619.0,67613.0,0.60935099]
[1718263339401,0.0134874,67619.0,67613.0,1.11290092]
[1718263339638,0.0134874,67619.0,67613.0,1.19910092]
[1718263339898,0.0134874,67619.0,67613.0,1.11390092]
[1718263340335,0.0134874,67619.0,67613.0,1.16390092]
[1718263340547,0.0134874,67619.0,67613.0,1.18690092]
[1718263341018,0.0134874,67619.0,67613.0,1.11550092]
[1718263341648,0.0134874,67619.0,67613.0,1.12950092]
[1718263342402,0.0134874,67619.0,67613.0,0.97597092]
[1718263342834,0.0134874,67619.0,67613.0,0.82427092]
[1718263343115,0.0134874,67619.0,67613.0,0.82027092]
[1718263343372,0.0134874,67619.0,67613.0,1.12950092]
[1718263343583,0.0134874,67619.0,67613.0,1.14350092]
[1718263344048,0.0134874,67619.0,67613.0,1.14326419]
[1718263344261,0.0134874,67619.0,67613.0,1.24326419]
[1718263344708,0.0134874,67619.0,67618.0,1.42708527]
[1718263344920,0.0134874,67619.0,67618.0,1.8728052]
[1718263345130,0.0134874,67619.0,67618.0,1.9228052]
[1718263345822,0.00856,67635.0,67623.0,0.54671426]
[1718263346040,0.00856,67635.0,67623.0,1.42794919]
[1718263347888,0.00856,67635.0,67623.0,1.32794919]
[1718263348112,0.00856,67635.0,67623.0,1.2420294]
[1718263348514,0.00856,67635.0,67623.0,1.3455444]
[1718263348791,0.00856,67635.0,67623.0,1.35754919]
[1718263348995,0.00856,67635.0,67623.0,1.37154919]
[1718263349207,0.00856,67635.0,67623.0,1.38554919]
[1718263349632,0.00856,67635.0,67623.0,1.35754919]
[1718263349866,0.00856,67635.0,67623.0,1.37154919]
[1718263350078,0.00856,67635.0,67623.0,1.38554919]
[1718263350288,0.00856,67635.0,67623.0,1.37154919]
[1718263350520,0.00836,67624.0,67623.0,1.47154919]
[1718263351167,0.00836,67624.0,67623.0,1.37154919]
[1718263351385,0.00836,67624.0,67623.0,1.25403419]
[1718263351598,0.00836,67624.0,67623.0,1.23843419]
[1718263351816,0.00836,67624.0,67623.0,1.25243419]
[1718263351996,0.00836,67624.0,67623.0,1.35594919]
[1718263352384,0.00836,67624.0,67623.0,1.34194919]
[1718263352565,0.00836,67624.0,67623.0,1.32794919]
[1718263352764,0.00836,67624.0,67623.0,1.35594919]
[1718263353171,0.00836,67624.0,67623.0,1.44194919]
[1718263353372,0.00836,67624.0,67623.0,1.42794919]
[1718263353812,0.00836,67624.0,67623.0,1.44194919]
[1718263354444,0.00836,67624.0,67623.0,1.34194919]
[1718263354664,0.00836,67624.0,67623.0,1.48405243]
[1718263355214,0.00836,67624.0,67623.0,1.47005243]
[1718263355412,0.00836,67624.0,67623.0,1.50164764]
[1718263355834,0.00836,67624.0,67623.0,1.48405243]
[1718263356042,0.00836,67624.0,67623.0,1.47005243]
[1718263356269,0.00836,67624.0,67623.0,1.50164764]
[1718263356497,0.00836,67624.0,67623.0,1.48405243]
[1718263357073,0.00856,67635.0,67634.0,0.8306155]
[1718263357321,0.00856,67635.0,67634.0,1.49849539]
[1718263357534,0.00856,67635.0,67634.0,1.08139739]
[1718263357757,0.00856,67635.0,67634.0,1.09898861]
[1718263357969,0.00856,67635.0,67634.0,1.08139739]
[1718263358459,0.00856,67635.0,67634.0,1.09619739]
[1718263358667,0.00856,67635.0,67634.0,1.07419739]
[1718263358870,0.00856,67635.0,67634.0,1.10019739]
[1718263359504,0.00856,67635.0,67634.0,1.11419739]
[1718263359895,0.00856,67635.0,67634.0,1.06419739]
[1718263360099,0.00856,67635.0,67634.0,1.08619739]
[1718263360309,0.00856,67635.0,67634.0,0.54043743]
[1718263360943,0.00856,67635.0,67634.0,0.61259739]
[1718263361535,0.00856,67635.0,67634.0,0.54043743]
[1718263362322,0.00856,67635.0,67634.0,0.55443743]
[1718263362526,0.00856,67635.0,67634.0,0.52643743]
[1718263362862,0.00856,67635.0,67634.0,0.55443743]
[1718263363290,0.00856,67635.0,67634.0,0.52643743]
[1718263363753,0.00856,67635.0,67634.0,0.55443743]
[1718263364955,0.00856,67635.0,67634.0,0.42043743]
[1718263365367,0.00856,67635.0,67634.0,0.43443743]
[1718263365581,0.00856,67635.0,67634.0,0.44043743]
[1718263365791,0.00856,67635.0,67634.0,0.42643743]
[1718263366023,0.00856,67635.0,67634.0,0.42043743]
[1718263366452,0.00856,67635.0,67634.0,0.43443743]
[1718263366655,0.00856,67635.0,67634.0,0.45443743]
[1718263366862,0.00856,67635.0,67634.0,0.46300743]
[1718263367249,0.00856,67635.0,67634.0,0.44900743]
[1718263367457,0.00856,67635.0,67634.0,0.46300743]
[1718263368339,0.00856,67635.0,67634.0,0.47300743]
[1718263368589,0.00856,67635.0,67634.0,0.79086739]
[1718263368765,0.00856,67635.0,67634.0,0.92936739]
[1718263368983,0.00856,67635.0,67634.0,1.22206539]
[1718263369666,0.00856,67635.0,67634.0,1.23606539]
[1718263369905,0.00856,67635.0,67634.0,1.22206539]
[1718263370127,0.00856,67635.0,67634.0,1.26631448]
[1718263370763,0.00856,67635.0,67634.0,1.22206539]
[1718263370979,0.00856,67635.0,67634.0,1.11856739]
[1718263371458,0.00856,67635.0,67634.0,1.13256739]
[1718263372148,0.00856,67635.0,67634.0,1.07256739]
[1718263372836,0.00856,67635.0,67634.0,1.13256739]
[1718263373295,0.00856,67635.0,67634.0,1.08256739]
[1718263374045,0.00856,67635.0,67634.0,1.07256739]
[1718263374253,0.00856,67635.0,67634.0,0.79086739]
[1718263377233,0.00856,67635.0,67634.0,0.71870743]
[1718263377639,0.00856,67635.0,67634.0,0.79086739]
[1718263378111,0.00856,67635.0,67634.0,0.54000743]
[1718263378895,0.00856,67635.0,67634.0,0.76766739]
[1718263379340,0.00856,67635.0,67634.0,0.79066739]
[1718263380599,0.00856,67635.0,67634.0,0.56300743]
[1718263381019,0.00856,67635.0,67634.0,0.79066739]
[1718263381655,0.00856,67635.0,67634.0,0.80066739]
[1718263381903,0.00856,67635.0,67634.0,0.95986739]
[1718263382296,0.00856,67635.0,67634.0,1.45986739]
[1718263382494,0.00856,67635.0,67634.0,1.58356739]
[1718263382697,0.00856,67635.0,67634.0,1.83547499]
[1718263383007,0.00856,67635.0,67634.0,2.03897299]
[1718263383209,0.00856,67635.0,67634.0,2.13897299]
[1718263383346,0.00856,67635.0,67634.0,2.29148749]
[1718263383546,0.00856,67635.0,67634.0,2.39529583]
[1718263383760,0.00856,67635.0,67634.0,2.13897299]
[1718263384068,0.00856,67635.0,67634.0,2.39523556]
[1718263384317,0.00856,67635.0,67634.0,2.30762202]
[1718263384526,0.00856,67635.0,67634.0,2.12031835]
[1718263384672,0.00856,67635.0,67634.0,1.84688937]
[1718263384871,0.00856,67635.0,67634.0,1.96129017]
[1718263385105,0.00856,67635.0,67634.0,1.74307499]
[1718263385310,0.00856,67635.0,67634.0,1.82499153]
[1718263385513,0.00856,67635.0,67634.0,1.80881199]
[1718263385724,0.00856,67635.0,67634.0,1.91230999]
[1718263386319,0.00856,67635.0,67634.0,1.80881199]
[1718263386525,0.00856,67635.0,67634.0,1.47417499]
[1718263386897,0.00856,67635.0,67634.0,1.79942303]
[1718263387287,0.00856,67635.0,67634.0,1.75557499]